Workbook

Sheet List1
A1: PO | B1: OČ | C1: PŘ | D1: JM | E1: ZA | F1: PR | G1: BO | H1: CE | I1: 1 | J1: 2 | K1: 3 | L1: 4 | M1: 5 | N1: 6 | O1: 7 | P1: 8 | Q1: 9 | R1: 10 | S1: 11 | T1: 12 | U1: 13 | V1: 14 | W1: 15 | X1: 16 | Y1: 17 | Z1: 18 | AA1: 19 | AB1: 20 | AC1: 21 | AD1: 22 | AE1: 23 | AF1: 24 | AG1: 25 | AH1: 26 | AI1: 27 | AJ1: 28 | AK1: 29 | AL1: 30 | AM1: 31 | AN1: 32 | AO1: 33 | AP1: 34 | AQ1: 35 | AR1: 36 | AS1: 37 | AT1: 38 | AU1: 39 | AV1: 40
A2: 1 | B2: 164 | C2: Procházka | D2: Michal | E2: =COUNT(I2:AV2) -> 16 | F2: =G2/15 -> 531.0163756 | G2: =I2+J2+K2+L2+M2+N2+O2+P2+Q2+R2+S2+U2+V2+W2+X2+Y2+Z2+AA2+AB2+AC2+AD2+AE2+AF2+AG2+AH2+AI2+AJ2+AK2+AL2+AM2+AN2+AO2+AP2+AQ2+AR2+AS2+AT2+AU2+AV2 -> 7965.245634 | H2: =I2+J2+K2+L2+M2+N2+O2+P2+Q2+R2+S2+T2+U2+V2+W2+X2+Y2+Z2+AA2+AB2+AC2+AD2+AE2+AF2+AG2+AH2+AI2+AJ2+AK2+AL2+AM2+AN2+AO2+AP2+AQ2+AR2+AS2+AT2+AU2+AV2+AW2 -> 8477.929103 | I2: 527.349462 | J2: 524.954651 | L2: 533.9365281 | M2: 536.9329592 | P2: 522.0746251 | R2: 519.7895247 | T2: 512.6834696 | U2: 527.0677276 | Y2: 529.7599419 | AA2: 547.5336448 | AB2: 529.4466653 | AE2: 542.0455751 | AG2: 538.4262989 | AH2: 530.770232 | AJ2: 533.297036 | AO2: 521.8607617
A3: 2 | B3: 122 | C3: Janeček | D3: Jaroslav | E3: =COUNT(I3:AV3) -> 35 | F3: =G3/15 -> 517.4314136 | G3: =Q3+V3+X3+AA3+AB3+AC3+AE3+AF3+AG3+AI3+AJ3+AK3+AL3+AO3+AP3+AQ3+AR3+AS3+AT3+AU3 -> 7761.471204 | H3: =I3+J3+K3+L3+M3+N3+O3+P3+Q3+R3+S3+T3+U3+V3+W3+X3+Y3+Z3+AA3+AB3+AC3+AD3+AE3+AF3+AG3+AH3+AI3+AJ3+AK3+AL3+AM3+AN3+AO3+AP3+AQ3+AR3+AS3+AT3+AU3+AV3+AW3 -> 17644.16354 | I3: 460.5837247 | J3: 476.7287707 | K3: 483.0696696 | L3: 500.0010104 | M3: 500.0025745 | N3: 491.5008685 | O3: 491.7541522 | P3: 499.9983132 | Q3: 511.8119344 | R3: 496.5043099 | S3: 504.4837433 | T3: 496.1425014 | U3: 500.0009146 | W3: 500.1872659 | X3: 516.9976959 | Y3: 491.5412425 | Z3: 499.9993653 | AB3: 514.0945211 | AC3: 513.5615497 | AD3: 505.2718041 | AF3: 510.6159303 | AG3: 521.0858885 | AH3: 478.9650534 | AI3: 533.8297243 | AJ3: 519.699207 | AK3: 507.603392 | AL3: 512.9733358 | AM3: 502.162703 | AN3: 500 | AP3: 531.52759 | AQ3: 508.38347 | AS3: 516.5055311 | AT3: 517.5798213 | AU3: 525.2016129 | AV3: 503.7943523
A4: 3 | B4: 131 | C4: Novák | D4: Pavel | E4: =COUNT(I4:AV4) -> 31 | F4: =G4/15 -> 515.0576699 | G4: =I4+J4+K4+L4+M4+N4+P4+R4+U4+V4+X4+Y4+AA4+AC4+AD4+AE4+AH4+AL4+AN4+AP4+AS4+AT4+AU4+AV4 -> 7725.865048 | H4: =I4+J4+K4+L4+M4+N4+O4+P4+Q4+R4+S4+T4+U4+V4+W4+X4+Y4+Z4+AA4+AB4+AC4+AD4+AE4+AF4+AG4+AH4+AI4+AJ4+AK4+AL4+AM4+AN4+AO4+AP4+AQ4+AR4+AS4+AT4+AU4+AV4+AW4 -> 15663.90822 | I4: 509.5940082 | J4: 524.068015 | K4: 507.8982232 | L4: 524.7461429 | N4: 519.8396505 | O4: 501.1944616 | Q4: 498.513302 | S4: 490.0539385 | T4: 500.0017663 | W4: 490.3988549 | X4: 528.4062971 | Y4: 511.7601234 | Z4: 499.4783105 | AB4: 497.6209234 | AC4: 509.3163517 | AD4: 502.685683 | AF4: 500 | AG4: 500.0007899 | AH4: 516.129701 | AI4: 499.1973495 | AJ4: 500.0011402 | AK4: 499.2461052 | AL4: 515.6934529 | AM4: 492.9308089 | AO4: 500.0023187 | AP4: 504.5827701 | AQ4: 499.9988385 | AR4: 469.4042623 | AS4: 510.2313521 | AT4: 523.827374 | AV4: 517.0859035
A5: 4 | B5: 132 | C5: Nový | D5: Břetislav | E5: =COUNT(I5:AV5) -> 30 | F5: =G5/15 -> 505.7098801 | G5: =I5+J5+M5+N5+O5+P5+Q5+T5+V5+X5+Z5+AA5+AB5+AC5+AE5+AH5+AI5+AK5+AL5+AM5+AN5+AQ5+AT5+AU5+AV5 -> 7585.648201 | H5: =I5+J5+K5+L5+M5+N5+O5+P5+Q5+R5+S5+T5+U5+V5+W5+X5+Y5+Z5+AA5+AB5+AC5+AD5+AE5+AF5+AG5+AH5+AI5+AJ5+AK5+AL5+AM5+AN5+AO5+AP5+AQ5+AR5+AS5+AT5+AU5+AV5+AW5 -> 14927.53681 | I5: 500.0118885 | J5: 499.9966094 | K5: 483.7632481 | L5: 486.0729694 | M5: 514.3852016 | N5: 499.9992415 | O5: 504.8526018 | Q5: 516.7262026 | R5: 491.1233427 | S5: 484.2684902 | U5: 495.9834454 | W5: 486.7611606 | X5: 499.9987128 | Y5: 493.522062 | Z5: 506.7223051 | AA5: 530.6953322 | AB5: 500.0009726 | AC5: 499.9993328 | AD5: 499.210142 | AE5: 511.6560765 | AF5: 497.5554959 | AG5: 494.167733 | AH5: 500.0009642 | AJ5: 483.0008609 | AK5: 500.0010229 | AO5: 450.8932815 | AP5: 495.5671623 | AR5: 500.0006091 | AS5: 499.9986059 | AU5: 500.601737
A6: 5 | B6: 113 | C6: Diviš | D6: Martin | E6: =COUNT(I6:AV6) -> 22 | F6: =G6/15 -> 501.9483511 | G6: =I6+J6+K6+L6+M6+N6+O6+P6+Q6+R6+S6+V6+W6+X6+AA6+AB6+AD6+AE6+AF6+AG6+AI6+AK6+AL6+AM6+AN6+AO6+AP6+AQ6+AR6+AS6+AT6+AU6+AV6 -> 7529.225267 | H6: =I6+J6+K6+L6+M6+N6+O6+P6+Q6+R6+S6+T6+U6+V6+W6+X6+Y6+Z6+AA6+AB6+AC6+AD6+AE6+AF6+AG6+AH6+AI6+AJ6+AK6+AL6+AM6+AN6+AO6+AP6+AQ6+AR6+AS6+AT6+AU6+AV6+AW6 -> 10949.54491 | K6: 499.9980517 | N6: 515.2639244 | O6: 495.5219878 | R6: 499.488005 | S6: 500.000835 | T6: 490.2321741 | U6: 489.4836969 | W6: 500.0005381 | Y6: 490.3957857 | Z6: 486.9028655 | AB6: 493.7590577 | AC6: 486.8961284 | AD6: 499.9995852 | AE6: 499.9997053 | AF6: 505.714205 | AH6: 490.201802 | AI6: 500.0005693 | AJ6: 486.2071914 | AK6: 516.1064454 | AM6: 500.0007696 | AO6: 502.6311518 | AQ6: 500.7404353
A7: 6 | B7: 159 | C7: Etrych | D7: Tomáš | E7: =COUNT(I7:AV7) -> 16 | F7: =G7/15 -> 501.8637397 | G7: =J7+K7+L7+M7+N7+O7+P7+Q7+R7+S7+T7+U7+V7+W7+X7+Y7+Z7+AA7+AB7+AC7+AD7+AE7+AF7+AG7+AH7+AI7+AJ7+AK7+AL7+AM7+AN7+AO7+AP7+AQ7+AR7+AS7+AT7+AU7+AV7 -> 7527.956095 | H7: =I7+J7+K7+L7+M7+N7+O7+P7+Q7+R7+S7+T7+U7+V7+W7+X7+Y7+Z7+AA7+AB7+AC7+AD7+AE7+AF7+AG7+AH7+AI7+AJ7+AK7+AL7+AM7+AN7+AO7+AP7+AQ7+AR7+AS7+AT7+AU7+AV7+AW7 -> 8008.087463 | I7: 480.1313678 | J7: 487.5328462 | K7: 494.0743844 | O7: 499.9983749 | R7: 503.7885554 | S7: 510.1798507 | T7: 505.2930215 | U7: 502.4187131 | V7: 526.4988511 | W7: 496.5501098 | Y7: 500.0007563 | AB7: 497.4643284 | AC7: 499.3958782 | AH7: 491.8912795 | AI7: 512.866316 | AV7: 500.0028295
A8: 7 | B8: 124 | C8: Jindra | D8: David | E8: =COUNT(I8:AV8) -> 16 | F8: =G8/15 -> 500.8331381 | G8: =I8+J8+K8+L8+M8+N8+O8+P8+Q8+R8+S8+T8+U8+V8+W8+X8+Y8+Z8+AA8+AB8+AC8+AD8+AE8+AF8+AG8+AH8+AI8+AJ8+AK8+AL8+AM8+AN8+AO8+AP8+AQ8+AR8+AT8+AU8+AV8 -> 7512.497072 | H8: =I8+J8+K8+L8+M8+N8+O8+P8+Q8+R8+S8+T8+U8+V8+W8+X8+Y8+Z8+AA8+AB8+AC8+AD8+AE8+AF8+AG8+AH8+AI8+AJ8+AK8+AL8+AM8+AN8+AO8+AP8+AQ8+AR8+AS8+AT8+AU8+AV8+AW8 -> 7953.716637 | K8: 509.2581047 | N8: 496.3963076 | P8: 505.6390534 | R8: 499.9993076 | W8: 500.7964183 | Z8: 505.7582585 | AD8: 497.8096376 | AG8: 492.3463343 | AI8: 496.5412027 | AJ8: 496.7292464 | AM8: 504.373124 | AP8: 500.0024579 | AR8: 507.6908084 | AS8: 441.2195649 | AU8: 500 | AV8: 499.1568106
A9: 8 | B9: 160 | C9: Kuriš | D9: Radek | E9: =COUNT(I9:AV9) -> 15 | F9: =G9/15 -> 490.3002587 | G9: =I9+J9+K9+L9+M9+N9+O9+P9+Q9+R9+S9+T9+U9+V9+W9+X9+Y9+Z9+AA9+AB9+AC9+AD9+AE9+AF9+AG9+AH9+AI9+AJ9+AK9+AL9+AM9+AN9+AO9+AP9+AQ9+AR9+AS9+AT9+AU9+AV9 -> 7354.503881 | H9: =I9+J9+K9+L9+M9+N9+O9+P9+Q9+R9+S9+T9+U9+V9+W9+X9+Y9+Z9+AA9+AB9+AC9+AD9+AE9+AF9+AG9+AH9+AI9+AJ9+AK9+AL9+AM9+AN9+AO9+AP9+AQ9+AR9+AS9+AT9+AU9+AV9+AW9 -> 7354.503881 | L9: 494.0928334 | R9: 458.9628553 | S9: 469.3523204 | T9: 469.2914672 | V9: 501.8455432 | X9: 495.9124435 | AB9: 495.3021505 | AF9: 489.8913397 | AM9: 469.9026399 | AN9: 512.2410792 | AO9: 495.0820242 | AQ9: 492.1008618 | AR9: 514.8547657 | AS9: 498.8787894 | AV9: 496.7927678
A10: 9 | B10: 138 | C10: Pilný | D10: Luděk | E10: =COUNT(I10:AV10) -> 31 | F10: =G10/15 -> 483.1562095 | G10: =I10+J10+K10+L10+Q10+X10+AA10+AD10+AE10+AF10+AG10+AH10+AI10+AK10+AL10+AM10+AN10+AO10+AP10+AQ10+AR10+AS10+AT10+AU10 -> 7247.343142 | H10: =I10+J10+K10+L10+M10+N10+O10+P10+Q10+R10+S10+T10+U10+V10+W10+X10+Y10+Z10+AA10+AB10+AC10+AD10+AE10+AF10+AG10+AH10+AI10+AJ10+AK10+AL10+AM10+AN10+AO10+AP10+AQ10+AR10+AS10+AT10+AU10+AV10+AW10 -> 14400.89054 | M10: 452.0660625 | N10: 433.8998157 | O10: 447.0040953 | P10: 438.7543647 | Q10: 466.3400694 | R10: 440.2869803 | S10: 392.5333567 | T10: 453.4525849 | U10: 440.1269036 | V10: 452.5413379 | W10: 453.5219984 | X10: 480.4819339 | Y10: 459.6299294 | Z10: 458.1506045 | AB10: 451.2965286 | AC10: 454.9227084 | AD10: 464.1589506 | AF10: 473.0037727 | AG10: 485.6886719 | AI10: 487.4797914 | AJ10: 462.2517859 | AL10: 499.9993898 | AM10: 476.8382975 | AN10: 508.3623485 | AO10: 481.8862675 | AP10: 488.9357257 | AR10: 479.7430306 | AS10: 469.8022459 | AT10: 499.9991201 | AU10: 484.6235267 | AV10: 463.1083414
A11: 10 | B11: 165 | C11: Hejkrlík | D11: Filip | E11: =COUNT(I11:AV11) -> 32 | F11: =G11/15 -> 482.841741 | G11: =J11+L11+M11+N11+P11+Q11+S11+U11+V11+X11+Y11+AA11+AC11+AD11+AE11+AH11+AL11+AM11+AN11+AP11+AR11+AT11+AU11 -> 7242.626116 | H11: =I11+J11+K11+L11+M11+N11+O11+P11+Q11+R11+S11+T11+U11+V11+W11+X11+Y11+Z11+AA11+AB11+AC11+AD11+AE11+AF11+AG11+AH11+AI11+AJ11+AK11+AL11+AM11+AN11+AO11+AP11+AQ11+AR11+AS11+AT11+AU11+AV11+AW11 -> 15114.01009 | I11: 456.4940855 | J11: 483.5734992 | K11: 464.6810708 | L11: 477.7545391 | M11: 484.7626281 | N11: 488.3386303 | O11: 468.5596581 | P11: 471.9877537 | Q11: 479.4447846 | R11: 460.2959809 | T11: 466.8995178 | U11: 471.9954726 | V11: 499.9991965 | W11: 468.3117009 | X11: 491.9883636 | Z11: 459.0832355 | AA11: 499.9998253 | AB11: 467.313472 | AD11: 470.9067603 | AE11: 472.0548882 | AF11: 469.3695158 | AG11: 464.6189754 | AI11: 470.4778332 | AJ11: 453.1883719 | AK11: 449.7954153 | AO11: 452.6717292 | AP11: 473.7040678 | AQ11: 468.4702316 | AR11: 491.1157063 | AS11: 465.736681 | AU11: 485 | AV11: 465.4165016
A12: 11 | B12: 145 | C12: Rada | D12: Petr | E12: =COUNT(I12:AV12) -> 33 | F12: =G12/15 -> 481.0240034 | G12: =I12+J12+K12+L12+M12+O12+Q12+T12+V12+X12+AA12+AD12+AE12+AF12+AI12+AJ12+AO12+AP12+AQ12+AR12+AT12+AU12 -> 7215.360051 | H12: =I12+J12+K12+L12+M12+N12+O12+P12+Q12+R12+S12+T12+U12+V12+W12+X12+Y12+Z12+AA12+AB12+AC12+AD12+AE12+AF12+AG12+AH12+AI12+AJ12+AK12+AL12+AM12+AN12+AO12+AP12+AQ12+AR12+AS12+AT12+AU12+AV12+AW12 -> 15333.87467 | I12: 483.4215063 | J12: 485.0763728 | K12: 475.8825592 | M12: 473.5595489 | N12: 466.5185039 | O12: 475.9287548 | P12: 468.2455341 | Q12: 500 | R12: 460.2554782 | S12: 463.6140474 | T12: 470.2933748 | U12: 441.8575936 | V12: 492.0666549 | W12: 466.7893581 | X12: 490.030507 | Y12: 438.0916365 | Z12: 445.482182 | AA12: 479.2441753 | AB12: 439.8062502 | AC12: 456.0141974 | AD12: 474.7809638 | AE12: 469.6782864 | AF12: 483.534216 | AG12: 467.0205204 | AH12: 410.7949149 | AI12: 477.1637407 | AK12: 468.3660839 | AL12: 441.1495515 | AM12: 434.7540984 | AN12: 469.3152084 | AR12: 484.6993903 | AS12: 415.0187159 | AV12: 465.4207459
A13: 11 | B13: 115 | C13: Doležal | D13: Jaromír | E13: =COUNT(I13:AV13) -> 20 | F13: =G13/15 -> 480.9881471 | G13: =I13+J13+K13+L13+M13+N13+O13+P13+Q13+R13+U13+V13+X13+Y13+AA13+AB13+AC13+AD13+AF13+AH13+AI13+AJ13+AK13+AL13+AM13+AN13+AO13+AP13+AQ13+AR13+AS13+AT13+AU13+AV13 -> 7214.822207 | H13: =I13+J13+K13+L13+M13+N13+O13+P13+Q13+R13+S13+T13+U13+V13+W13+X13+Y13+Z13+AA13+AB13+AC13+AD13+AE13+AF13+AG13+AH13+AI13+AJ13+AK13+AL13+AM13+AN13+AO13+AP13+AQ13+AR13+AS13+AT13+AU13+AV13+AW13 -> 9462.677577 | M13: 478.8843262 | S13: 425 | T13: 446.2374375 | V13: 482.7368996 | W13: 460.5563089 | X13: 486.2660419 | Z13: 466.1876051 | AD13: 472.9710109 | AF13: 479.3531249 | AG13: 449.8740186 | AJ13: 468.3069845 | AK13: 492.7126914 | AL13: 497.0083593 | AM13: 470.8646964 | AO13: 484.7278419 | AP13: 477.8911147 | AQ13: 490.9051314 | AR13: 478.0013765 | AS13: 476.636159 | AV13: 477.5564484
A14: 13 | B14: 153 | C14: Pěkný | D14: Jan | E14: =COUNT(I14:AV14) -> 21 | F14: =G14/15 -> 475.52178 | G14: =I14+J14+K14+L14+M14+N14+O14+P14+Q14+S14+V14+X14+Y14+Z14+AA14+AB14+AC14+AD14+AE14+AF14+AG14+AH14+AI14+AK14+AL14+AM14+AN14+AO14+AP14+AR14+AS14+AT14+AU14+AV14 -> 7132.8267 | H14: =I14+J14+K14+L14+M14+N14+O14+P14+Q14+R14+S14+T14+U14+V14+W14+X14+Y14+Z14+AA14+AB14+AC14+AD14+AE14+AF14+AG14+AH14+AI14+AJ14+AK14+AL14+AM14+AN14+AO14+AP14+AQ14+AR14+AS14+AT14+AU14+AV14+AW14 -> 9873.729087 | K14: 467.1894483 | N14: 482.6475117 | P14: 475.2019972 | R14: 460.1585488 | T14: 455.6034407 | U14: 456.6662094 | W14: 455.3725946 | Z14: 472.3168216 | AC14: 462.0253925 | AF14: 472.0323296 | AG14: 475.6014723 | AH14: 470.5853995 | AI14: 475.7178314 | AJ14: 454.6797945 | AL14: 477.6081518 | AM14: 466.1417686 | AN14: 497.6169379 | AP14: 477.237311 | AQ14: 458.4217984 | AR14: 491.7062059 | AV14: 469.1981212
A15: 14 | B15: 150 | C15: Urban | D15: Josef | E15: =COUNT(I15:AV15) -> 31 | F15: =G15/15 -> 472.2840415 | G15: =I15+J15+L15+M15+N15+V15+X15+AA15+AC15+AD15+AE15+AF15+AG15+AH15+AI15+AL15+AK15+AM15+AN15+AR15+AS15+AT15+AU15+AV15 -> 7084.260623 | H15: =I15+J15+K15+L15+M15+N15+O15+P15+Q15+R15+S15+T15+U15+V15+W15+X15+Y15+Z15+AA15+AB15+AC15+AD15+AE15+AF15+AG15+AH15+AI15+AJ15+AK15+AL15+AM15+AN15+AO15+AP15+AQ15+AR15+AS15+AT15+AU15+AV15+AW15 -> 14346.53095 | K15: 445.1196228 | L15: 465.0823962 | M15: 468.4851449 | N15: 473.3951774 | O15: 456.3265837 | P15: 458.9680009 | Q15: 460.6280193 | R15: 459.4537335 | S15: 459.3039761 | T15: 460.7414734 | U15: 450.051676 | V15: 472.8543652 | W15: 438.9513109 | X15: 474.2543798 | Y15: 459.5592128 | Z15: 457.0862819 | AB15: 459.3932674 | AC15: 467.4681593 | AD15: 471.8173371 | AE15: 484.0463532 | AG15: 462.8611598 | AH15: 467.6205582 | AI15: 470.2780245 | AJ15: 440.7758134 | AK15: 467.5763868 | AO15: 455.8738624 | AP15: 453.6438491 | AQ15: 446.3936445 | AS15: 467.3869553 | AT15: 490.9124507 | AU15: 480.2217742
A16: 15 | B16: 128 | C16: Matějovský | D16: Pavel | E16: =COUNT(I16:AV16) -> 22 | F16: =G16/15 -> 466.306283 | G16: =I16+J16+L16+M16+N16+O16+Q16+R16+U16+V16+W16+X16+Y16+Z16+AA16+AB16+AC16+AD16+AE16+AG16+AI16+AK16+AL16+AM16+AN16+AO16+AP16+AQ16+AR16+AS16+AT16+AU16+AV16 -> 6994.594245 | H16: =I16+J16+K16+L16+M16+N16+O16+P16+Q16+R16+S16+T16+U16+V16+W16+X16+Y16+Z16+AA16+AB16+AC16+AD16+AE16+AF16+AG16+AH16+AI16+AJ16+AK16+AL16+AM16+AN16+AO16+AP16+AQ16+AR16+AS16+AT16+AU16+AV16+AW16 -> 10112.06897 | K16: 450.2664238 | M16: 464.4025797 | O16: 457.5332337 | P16: 452.1144342 | R16: 453.8245578 | S16: 451.1639363 | T16: 450.5342918 | W16: 453.0532954 | X16: 485.9345836 | AF16: 433.881816 | AH16: 430.8866563 | AI16: 455.0692215 | AJ16: 448.6271615 | AK16: 466.561135 | AL16: 464.0154982 | AM16: 455.841607 | AN16: 490.9923692 | AP16: 457.5949367 | AQ16: 454.5332063 | AR16: 484.2852183 | AS16: 468.6350297 | AU16: 482.317773
A17: 16 | B17: 142 | C17: Procházka | D17: Tomáš | E17: =COUNT(I17:AV17) -> 23 | F17: =G17/15 -> 458.518235 | G17: =I17+L17+N17+O17+P17+Q17+R17+S17+T17+V17+X17+Y17+AA17+AB17+AC17+AD17+AE17+AF17+AG17+AI17+AJ17+AK17+AL17+AN17+AO17+AP17+AQ17+AR17+AS17+AT17+AU17+AV17 -> 6877.773525 | H17: =I17+J17+K17+L17+M17+N17+O17+P17+Q17+R17+S17+T17+U17+V17+W17+X17+Y17+Z17+AA17+AB17+AC17+AD17+AE17+AF17+AG17+AH17+AI17+AJ17+AK17+AL17+AM17+AN17+AO17+AP17+AQ17+AR17+AS17+AT17+AU17+AV17+AW17 -> 10271.9227 | I17: 453.7210961 | J17: 422.6778782 | K17: 402.4241155 | M17: 434.3198085 | O17: 445.8161342 | Q17: 460.4000816 | U17: 389.0080944 | W17: 430.6567222 | Z17: 430.0685431 | AA17: 466.4165074 | AB17: 451.8864346 | AD17: 456.1989745 | AF17: 456.845318 | AG17: 446.5641439 | AH17: 444.736563 | AI17: 469.4156022 | AK17: 445.50067 | AM17: 440.2574463 | AN17: 458.7399794 | AP17: 471.9841465 | AR17: 464.1229604 | AS17: 458.2576449 | AT17: 471.9038317
A18: 17 | B18: 112 | C18: Čižinský | D18: Jaromír | E18: =COUNT(I18:AV18) -> 26 | F18: =G18/15 -> 448.7237908 | G18: =J18+K18+L18+M18+N18+P18+Q18+R18+T18+V18+W18+X18+Y18+AA18+AD18+AE18+AG18+AH18+AI18+AL18+AM18+AN18+AO18+AP18+AR18+AS18+AT18+AU18+AV18 -> 6730.856862 | H18: =I18+J18+K18+L18+M18+N18+O18+P18+Q18+R18+S18+T18+U18+V18+W18+X18+Y18+Z18+AA18+AB18+AC18+AD18+AE18+AF18+AG18+AH18+AI18+AJ18+AK18+AL18+AM18+AN18+AO18+AP18+AQ18+AR18+AS18+AT18+AU18+AV18+AW18 -> 11364.96389 | I18: 413.624205 | J18: 452.7523014 | L18: 455.4636113 | M18: 452.3183667 | N18: 450.6807649 | O18: 427.8317678 | S18: 431.4763789 | T18: 439.0518749 | U18: 417.9475923 | X18: 435.8219522 | Z18: 419.7442325 | AA18: 470.146531 | AB18: 425.8780504 | AC18: 415.4362953 | AE18: 442.4186874 | AF18: 420.3515564 | AI18: 436.625908 | AJ18: 417.028215 | AK18: 419.9879295 | AL18: 437.7338459 | AN18: 465.3444807 | AP18: 452.4874032 | AQ18: 424.8008084 | AR18: 452.170444 | AS18: 445.9943817 | AU18: 441.8463089
A19: 18 | B19: 163 | C19: Horák | D19: Karel | E19: =COUNT(I19:AV19) -> 16 | F19: =G19/15 -> 438.1480064 | G19: =I19+J19+K19+L19+M19+N19+O19+P19+Q19+R19+S19+T19+U19+V19+W19+X19+Z19+AA19+AB19+AC19+AD19+AE19+AF19+AG19+AH19+AI19+AJ19+AK19+AL19+AM19+AN19+AO19+AP19+AQ19+AR19+AS19+AT19+AU19+AV19 -> 6572.220096 | H19: =I19+J19+K19+L19+M19+N19+O19+P19+Q19+R19+S19+T19+U19+V19+W19+X19+Y19+Z19+AA19+AB19+AC19+AD19+AE19+AF19+AG19+AH19+AI19+AJ19+AK19+AL19+AM19+AN19+AO19+AP19+AQ19+AR19+AS19+AT19+AU19+AV19+AW19 -> 6990.325044 | M19: 459.0778024 | N19: 445.063222 | O19: 428.6150746 | Q19: 437.8376539 | T19: 444.248194 | U19: 422.5728266 | W19: 434.144819 | X19: 450.7369315 | Y19: 418.1049479 | Z19: 443.6873671 | AB19: 434.9099822 | AC19: 436.8597677 | AE19: 435.7056126 | AF19: 426.3186899 | AI19: 441.6194184 | AJ19: 430.8227339
A20: 19 | B20: 155 | C20: Rock | D20: Jan | E20: =COUNT(I20:AV20) -> 33 | F20: =G20/15 -> 422.1590154 | G20: =J20+L20+M20+N20+O20+Q20+R20+S20+T20+V20+X20+AA20+AB20+AD20+AG20+AH20+AI20+AJ20+AK20+AN20+AT20+AU20 -> 6332.385231 | H20: =I20+J20+K20+L20+M20+N20+O20+P20+Q20+R20+S20+T20+U20+V20+W20+X20+Y20+Z20+AA20+AB20+AC20+AD20+AE20+AF20+AG20+AH20+AI20+AJ20+AK20+AL20+AM20+AN20+AO20+AP20+AQ20+AR20+AS20+AT20+AU20+AV20+AW20 -> 13346.87709 | I20: 376.2111395 | J20: 411.9110991 | K20: 390.8938591 | L20: 414.2402473 | M20: 415.3081716 | N20: 438.9071353 | O20: 413.0854487 | P20: 380.7803249 | Q20: 413.9620331 | R20: 412.449891 | S20: 423.0248986 | U20: 382.1045411 | W20: 403.7582332 | X20: 445.915018 | Y20: 386.9125233 | Z20: 403.354806 | AC20: 401.8533962 | AD20: 411.8876941 | AE20: 393.3511736 | AF20: 405.7565952 | AG20: 424.7950334 | AH20: 427.4703395 | AI20: 436.8877656 | AL20: 377.0895113 | AM20: 370.9351189 | AN20: 425.3630365 | AO20: 376.9961162 | AP20: 368.3077301 | AQ20: 386.4387094 | AR20: 409.0740211 | AS20: 403.4922383 | AU20: 417.1774194 | AV20: 397.1818233
A21: 20 | B21: 133 | C21: Ovčinikov | D21: Milan | E21: =COUNT(I21:AV21) -> 24 | F21: =G21/15 -> 418.0061065 | G21: =J21+K21+L21+M21+N21+Q21+S21+V21+W21+X21+Z21+AA21+AB21+AC21+AD21+AE21+AF21+AH21+AI21+AJ21+AL21+AM21+AN21+AO21+AP21+AQ21+AR21+AS21+AT21+AU21+AV21 -> 6270.091597 | H21: =I21+J21+K21+L21+M21+N21+O21+P21+Q21+R21+S21+T21+U21+V21+W21+X21+Y21+Z21+AA21+AB21+AC21+AD21+AE21+AF21+AG21+AH21+AI21+AJ21+AK21+AL21+AM21+AN21+AO21+AP21+AQ21+AR21+AS21+AT21+AU21+AV21+AW21 -> 9652.161826 | I21: 387.6003091 | J21: 411.6534152 | O21: 362.0697501 | P21: 359.4116357 | Q21: 417.3368715 | R21: 383.2907536 | T21: 384.3686525 | U21: 383.0484291 | Y21: 377.2103647 | Z21: 405.0912322 | AA21: 438.2686064 | AB21: 400.5972007 | AD21: 419.7530864 | AF21: 414.5172458 | AG21: 372.7690631 | AK21: 372.3012715 | AL21: 408.0907926 | AM21: 395.7607943 | AP21: 411.3014625 | AQ21: 400.3948988 | AR21: 438.460742 | AS21: 423.6593918 | AT21: 459.8770728 | AU21: 425.3287841
A22: 21 | B22: 146 | C22: Rádl | D22: Pavel | E22: =COUNT(I22:AV22) -> 14 | F22: =G22/E22 -> 446.7634856 | G22: =I22+J22+K22+L22+M22+N22+O22+P22+Q22+R22+S22+T22+U22+V22+W22+X22+Y22+Z22+AA22+AB22+AC22+AD22+AE22+AF22+AG22+AH22+AI22+AJ22+AK22+AL22+AM22+AN22+AO22+AP22+AQ22+AR22+AS22+AT22+AU22+AV22 -> 6254.688798 | H22: =I22+J22+K22+L22+M22+N22+O22+P22+Q22+R22+S22+T22+U22+V22+W22+X22+Y22+Z22+AA22+AB22+AC22+AD22+AE22+AF22+AG22+AH22+AI22+AJ22+AK22+AL22+AM22+AN22+AO22+AP22+AQ22+AR22+AS22+AT22+AU22+AV22+AW22 -> 6254.688798 | L22: 446.6228163 | M22: 467.4398847 | P22: 454.8588972 | Q22: 451.6499966 | T22: 437.7943021 | U22: 437.4262587 | X22: 455.9630311 | Z22: 448.8407959 | AC22: 438.7558627 | AD22: 453.2905217 | AG22: 439.4515268 | AL22: 443.1094026 | AO22: 437.9873631 | AU22: 441.498139
A23: 22 | B23: 136 | C23: Paukert | D23: Milan | E23: =COUNT(I23:AV23) -> 38 | F23: =G23/15 -> 415.4049405 | G23: =L23+M23+N23+Q23+V23+X23+Z23+AA23+AE23+AK23+AL23+AN23+AP23+AR23+AT23+AU23+AV23 -> 6231.074107 | H23: =I23+J23+K23+L23+M23+N23+O23+P23+Q23+R23+S23+T23+U23+V23+W23+X23+Y23+Z23+AA23+AB23+AC23+AD23+AE23+AF23+AG23+AH23+AI23+AJ23+AK23+AL23+AM23+AN23+AO23+AP23+AQ23+AR23+AS23+AT23+AU23+AV23+AW23 -> 15075.78149 | I23: 363.01492 | J23: 393.8054148 | K23: 370.3787406 | L23: 406.9736191 | M23: 409.5051748 | N23: 415.0534372 | O23: 399.3434524 | P23: 396.1978982 | Q23: 417.9764578 | R23: 395.0053657 | S23: 397.2245879 | T23: 395.9906035 | U23: 385.2837609 | V23: 423.5927432 | W23: 395.0234621 | X23: 436.147618 | Y23: 392.2824426 | Z23: 401.5117571 | AB23: 377.1916003 | AC23: 392.4276288 | AD23: 378.5742732 | AE23: 407.1463095 | AF23: 388.4839836 | AG23: 388.8062177 | AH23: 351.4334887 | AI23: 388.2733338 | AJ23: 356.48079 | AK23: 406.1477716 | AL23: 408 | AM23: 378.3975987 | AN23: 422.0480157 | AO23: 392.3320387 | AP23: 402.0597272 | AQ23: 388.6036842 | AR23: 418.9946584 | AS23: 380.1520971 | AT23: 431.7542864 | AU23: 424.162531
A24: 23 | B24: 126 | C24: Ledvinka | D24: Josef | E24: =COUNT(I24:AV24) -> 18 | F24: =G24/15 -> 403.4597454 | G24: =I24+J24+L24+M24+N24+P24+Q24+R24+S24+T24+U24+V24+W24+X24+Y24+Z24+AA24+AB24+AC24+AD24+AE24+AF24+AG24+AH24+AI24+AJ24+AK24+AL24+AM24+AN24+AO24+AP24+AR24+AS24+AT24+AU24+AV24 -> 6051.896181 | H24: =I24+J24+K24+L24+M24+N24+O24+P24+Q24+R24+S24+T24+U24+V24+W24+X24+Y24+Z24+AA24+AB24+AC24+AD24+AE24+AF24+AG24+AH24+AI24+AJ24+AK24+AL24+AM24+AN24+AO24+AP24+AQ24+AR24+AS24+AT24+AU24+AV24+AW24 -> 7182.210935 | I24: 398.1929501 | J24: 379.242884 | K24: 377.8522444 | M24: 403.4884918 | O24: 376.6698086 | W24: 393.7556503 | X24: 423.0308803 | Z24: 408.1261702 | AB24: 402.2273448 | AC24: 408.1581458 | AE24: 416.9144258 | AF24: 384.923203 | AG24: 401.4865014 | AH24: 389.1530196 | AI24: 412.5031309 | AQ24: 375.7927013 | AR24: 406.1772534 | AU24: 424.516129
A25: 24 | B25: 149 | C25: Šnajberk | D25: Jiří | E25: =COUNT(I25:AV25) -> 26 | F25: =G25/15 -> 403.16633 | G25: =J25+K25+L25+P25+Q25+S25+U25+V25+W25+X25+Y25+AA25+AC25+AD25+AE25+AF25+AG25+AI25+AJ25+AK25+AL25+AN25+AO25+AP25+AQ25+AR25+AS25+AT25+AV25 -> 6047.49495 | H25: =I25+J25+K25+L25+M25+N25+O25+P25+Q25+R25+S25+T25+U25+V25+W25+X25+Y25+Z25+AA25+AB25+AC25+AD25+AE25+AF25+AG25+AH25+AI25+AJ25+AK25+AL25+AM25+AN25+AO25+AP25+AQ25+AR25+AS25+AT25+AU25+AV25+AW25 -> 9910.588297 | I25: 375.9466207 | J25: 395 | K25: 391.5635715 | L25: 400.7032221 | M25: 290.1047835 | N25: 345.9017575 | O25: 356.055189 | Q25: 410.7504933 | R25: 360.24717 | T25: 380.2188389 | W25: 396.8078695 | X25: 397.4011096 | Z25: 315.2994002 | AA25: 411.9847563 | AB25: 354.7469678 | AD25: 405.5248573 | AF25: 393.3482641 | AH25: 342.0469939 | AI25: 409.3460391 | AJ25: 386.0960189 | AM25: 357.3662741 | AN25: 405.7337872 | AP25: 412.1254762 | AQ25: 392.2175893 | AT25: 438.8918953 | AU25: 385.1593517
A26: 24 | B26: 166 | C26: Bradáč | D26: Jiří | E26: =COUNT(I26:AV26) -> 15 | F26: =G26/15 -> 403.1627844 | G26: =I26+J26+K26+L26+M26+N26+O26+P26+Q26+R26+S26+T26+U26+V26+W26+X26+Y26+Z26+AA26+AB26+AC26+AD26+AE26+AF26+AG26+AH26+AI26+AJ26+AK26+AL26+AM26+AN26+AO26+AP26+AQ26+AR26+AS26+AT26+AU26+AV26 -> 6047.441766 | H26: =I26+J26+K26+L26+M26+N26+O26+P26+Q26+R26+S26+T26+U26+V26+W26+X26+Y26+Z26+AA26+AB26+AC26+AD26+AE26+AF26+AG26+AH26+AI26+AJ26+AK26+AL26+AM26+AN26+AO26+AP26+AQ26+AR26+AS26+AT26+AU26+AV26+AW26 -> 6047.441766 | I26: 427.6942281 | J26: 438.8780579 | L26: 434.2386307 | M26: 459.2412852 | N26: 430.665898 | AD26: 374.0666069 | AF26: 0 | AH26: 398.6838997 | AI26: 397.3916707 | AJ26: 405.76615 | AK26: 448.2819996 | AP26: 450.1831142 | AQ26: 445.8825989 | AR26: 465.2266069 | AT26: 471.2410191
A27: 26 | B27: 143 | C27: Pucholt | D27: Miroslav | E27: =COUNT(I27:AV27) -> 24 | F27: =G27/15 -> 387.6809714 | G27: =J27+K27+L27+M27+N27+O27+P27+Q27+R27+T27+U27+V27+W27+X27+Z27+AA27+AB27+AD27+AE27+AF27+AG27+AH27+AI27+AK27+AL27+AN27+AP27+AQ27+AS27+AT27+AU27 -> 5815.214571 | H27: =I27+J27+K27+L27+M27+N27+O27+P27+Q27+R27+S27+T27+U27+V27+W27+X27+Y27+Z27+AA27+AB27+AC27+AD27+AE27+AF27+AG27+AH27+AI27+AJ27+AK27+AL27+AM27+AN27+AO27+AP27+AQ27+AR27+AS27+AT27+AU27+AV27+AW27 -> 9011.870567 | I27: 331.8968079 | J27: 371.5344059 | K27: 373.5115337 | L27: 386.3841654 | M27: 405.0859894 | N27: 384.7334208 | Q27: 392.0902225 | R27: 385.9050784 | S27: 365.986173 | U27: 373.1019344 | V27: 411.0298726 | Y27: 348.4691948 | Z27: 377.1103989 | AC27: 372.1470174 | AD27: 398.760454 | AF27: 398.1178731 | AG27: 384.2898441 | AH27: 374.7684772 | AI27: 398.790901 | AJ27: 363.779981 | AM27: 341.1013623 | AO27: 359.9571039 | AR27: 360.6798511 | AV27: 352.6385038
A28: 27 | B28: 140 | C28: Pokorný | D28: Jan | E28: =COUNT(I28:AV28) -> 20 | F28: =G28/15 -> 368.0902128 | G28: =K28+L28+M28+N28+O28+P28+Q28+R28+S28+U28+V28+W28+X28+AA28+AB28+AC28+AD28+AE28+AF28+AG28+AH28+AI28+AJ28+AK28+AL28+AM28+AN28+AO28+AP28+AQ28+AR28+AS28+AT28+AU28+AV28 -> 5521.353192 | H28: =I28+J28+K28+L28+M28+N28+O28+P28+Q28+R28+S28+T28+U28+V28+W28+X28+Y28+Z28+AA28+AB28+AC28+AD28+AE28+AF28+AG28+AH28+AI28+AJ28+AK28+AL28+AM28+AN28+AO28+AP28+AQ28+AR28+AS28+AT28+AU28+AV28+AW28 -> 7161.63007 | I28: 303.0999227 | J28: 335.1755472 | K28: 355.7497857 | M28: 376.8697544 | O28: 368.0046803 | P28: 355.3771739 | Q28: 378 | T28: 345.5861314 | Y28: 307.9308415 | Z28: 348.484435 | AB28: 365.4746968 | AF28: 373.1457801 | AH28: 357.2108316 | AI28: 371.2093267 | AK28: 357.3246453 | AN28: 366.3431568 | AP28: 391.5423375 | AQ28: 373.7136751 | AR28: 382.7080148 | AV28: 348.6793334
A29: 28 | B29: 114 | C29: Dolejš | D29: Radomír | E29: =COUNT(I29:AV29) -> 40 | F29: =G29/15 -> 367.3289494 | G29: =I29+M29+Q29+X29+AA29+AG29+AK29+AL29+AN29+AP29+AQ29+AR29+AT29+AU29+AV29 -> 5509.934242 | H29: =I29+J29+K29+L29+M29+N29+O29+P29+Q29+R29+S29+T29+U29+V29+W29+X29+Y29+Z29+AA29+AB29+AC29+AD29+AE29+AF29+AG29+AH29+AI29+AJ29+AK29+AL29+AM29+AN29+AO29+AP29+AQ29+AR29+AS29+AT29+AU29+AV29+AW29 -> 13436.79845 | I29: 381.8997801 | J29: 326.9262719 | K29: 302.9623208 | L29: 328.1016035 | M29: 365.1202307 | N29: 339.0929709 | O29: 202.4994312 | P29: 334.0999949 | Q29: 361.7013676 | R29: 337.5511476 | S29: 305.4255799 | T29: 331.0551601 | U29: 322.0482919 | V29: 346.1618807 | W29: 343.1325068 | X29: 376.2547144 | Y29: 300.8977598 | Z29: 306.4138609 | AA29: 362.2807539 | AB29: 340.8041785 | AC29: 330.6617652 | AD29: 341.529769 | AE29: 339.3630566 | AF29: 346.6603552 | AG29: 352.0401877 | AH29: 317.4139834 | AI29: 329.9269076 | AJ29: 322.5879831 | AK29: 370.2083696 | AL29: 365.5317591 | AM29: 340.4640961 | AN29: 365.4643635 | AO29: 344.8205901 | AP29: 382.7676048 | AQ29: 358.4241214 | AR29: 367.9156795 | AS29: 146.2627474 | AT29: 379.0399007 | AU29: 349.8449132 | AV29: 371.4404957
A30: 29 | B30: 106 | C30: Březina | D30: Petr | E30: =COUNT(I30:AV30) -> 26 | F30: =G30/15 -> 366.0636379 | G30: =I30+J30+L30+N30+O30+Q30+R30+S30+T30+U30+V30+W30+Y30+AA30+AB30+AC30+AD30+AE30+AH30+AK30+AL30+AN30+AO30+AP30+AQ30+AR30+AS30+AT30+AU30 -> 5490.954569 | H30: =I30+J30+K30+L30+M30+N30+O30+P30+Q30+R30+S30+T30+U30+V30+W30+X30+Y30+Z30+AA30+AB30+AC30+AD30+AE30+AF30+AG30+AH30+AI30+AJ30+AK30+AL30+AM30+AN30+AO30+AP30+AQ30+AR30+AS30+AT30+AU30+AV30+AW30 -> 9201.035835 | I30: 352.4579445 | J30: 369.9221862 | K30: 347.6893703 | L30: 351.1119194 | M30: 344.220174 | N30: 350.3068183 | O30: 368.2321968 | P30: 335.236071 | Q30: 381.1117915 | X30: 344.245498 | Z30: 325.5735728 | AB30: 351.8018149 | AF30: 340.0234559 | AG30: 321.4950318 | AI30: 348.6668033 | AJ30: 309.729024 | AK30: 356.1636269 | AL30: 355.2944048 | AM30: 345.4290772 | AN30: 394.7105612 | AQ30: 357.4484889 | AR30: 384.4161698 | AS30: 354.8072298 | AT30: 384.2922447 | AU30: 378.8771712 | AV30: 347.7731877
A31: 30 | B31: 147 | C31: Rožánek | D31: Vladimír | E31: =COUNT(I31:AV31) -> 30 | F31: =G31/15 -> 351.6325901 | G31: =M31+N31+Q31+R31+T31+U31+V31+W31+X31+AB31+AC31+AD31+AF31+AH31+AI31+AK31+AL31+AN31+AO31+AQ31+AR31+AS31+AT31+AU31+AV31 -> 5274.488852 | H31: =I31+J31+K31+L31+M31+N31+O31+P31+Q31+R31+S31+T31+U31+V31+W31+X31+Y31+Z31+AA31+AB31+AC31+AD31+AE31+AF31+AG31+AH31+AI31+AJ31+AK31+AL31+AM31+AN31+AO31+AP31+AQ31+AR31+AS31+AT31+AU31+AV31+AW31 -> 10039.46354 | I31: 313.4934316 | J31: 321.3521623 | K31: 265 | L31: 326.4405444 | M31: 364.5911642 | O31: 328.7369584 | P31: 333.0600678 | Q31: 362.4004899 | S31: 328.0747458 | T31: 355.0108625 | V31: 369.2773698 | W31: 341.8055017 | X31: 364.0866554 | Y31: 270.434434 | Z31: 325.716371 | AA31: 335.8527491 | AB31: 337.2063844 | AE31: 323.3740436 | AF31: 344.3373698 | AG31: 330.939292 | AI31: 349.1119612 | AJ31: 302.6709919 | AK31: 340.7788541 | AL31: 346.97419 | AM31: 334.1376126 | AO31: 339.1026607 | AP31: 325.6912867 | AQ31: 352.6957653 | AR31: 364.1607231 | AV31: 342.9488993
A32: 31 | B32: 135 | C32: Pachmann | D32: Ota | E32: =COUNT(I32:AV32) -> 32 | F32: =G32/15 -> 349.6030476 | G32: =J32+K32+M32+N32+P32+Q32+T32+U32+V32+W32+Z32+AA32+AB32+AC32+AE32+AG32+AH32+AI32+AN32+AP32+AS32+AT32+AV32 -> 5244.045714 | H32: =I32+J32+K32+L32+M32+N32+O32+P32+Q32+R32+S32+T32+U32+V32+W32+X32+Y32+Z32+AA32+AB32+AC32+AD32+AE32+AF32+AG32+AH32+AI32+AJ32+AK32+AL32+AM32+AN32+AO32+AP32+AQ32+AR32+AS32+AT32+AU32+AV32+AW32 -> 10526.4778 | I32: 300.6716995 | J32: 345.9982708 | L32: 316.1589524 | M32: 377.93368 | N32: 355.1036507 | O32: 325.8263724 | P32: 351.2828298 | Q32: 361.2369871 | R32: 318.7703811 | S32: 303.2413206 | T32: 331.0048219 | U32: 362 | V32: 356 | W32: 343.3552886 | X32: 311.0430317 | Y32: 306.5225612 | Z32: 352.0959604 | AB32: 341.0346941 | AD32: 325.2389486 | AF32: 321.0354524 | AI32: 330.2821231 | AJ32: 319.91129 | AK32: 315.7131313 | AL32: 292.1691378 | AM32: 312 | AN32: 347.2098575 | AO32: 274.4072807 | AQ32: 305.6563451 | AR32: 315.09596 | AS32: 330.3559853 | AT32: 359.1515647 | AU32: 318.9702233
A33: 32 | B33: 103 | C33: Běhal | D33: Jaromír | E33: =COUNT(I33:AV33) -> 20 | F33: =G33/15 -> 347.6429354 | G33: =I33+J33+K33+L33+M33+N33+P33+Q33+S33+T33+U33+V33+X33+Y33+Z33+AA33+AB33+AC33+AD33+AE33+AF33+AG33+AH33+AI33+AJ33+AK33+AL33+AN33+AO33+AP33+AQ33+AS33+AT33+AU33+AV33 -> 5214.644032 | H33: =I33+J33+K33+L33+M33+N33+O33+P33+Q33+R33+S33+T33+U33+V33+W33+X33+Y33+Z33+AA33+AB33+AC33+AD33+AE33+AF33+AG33+AH33+AI33+AJ33+AK33+AL33+AM33+AN33+AO33+AP33+AQ33+AR33+AS33+AT33+AU33+AV33+AW33 -> 6748.339489 | L33: 345.0880543 | M33: 376.6824571 | O33: 323.7202197 | Q33: 343.8048581 | R33: 315.310001 | T33: 337.3898299 | W33: 289.7907788 | X33: 328.1810341 | Z33: 334.5032209 | AB33: 357.0890841 | AI33: 334.1211831 | AK33: 333.5856545 | AM33: 310.4225352 | AN33: 342.6063569 | AO33: 339.7530578 | AP33: 373.8822662 | AQ33: 345.7757439 | AR33: 294.4519225 | AS33: 359.8999031 | AU33: 362.2813275
A34: 33 | B34: 139 | C34: Plzák | D34: Jiří | E34: =COUNT(I34:AV34) -> 19 | F34: =G34/15 -> 330.3739267 | G34: =I34+J34+K34+L34+M34+N34+O34+P34+Q34+S34+T34+U34+V34+W34+X34+Y34+Z34+AA34+AB34+AC34+AD34+AE34+AF34+AG34+AH34+AI34+AJ34+AK34+AL34+AN34+AO34+AP34+AQ34+AT34+AU34+AV34 -> 4955.608901 | H34: =I34+J34+K34+L34+M34+N34+O34+P34+Q34+R34+S34+T34+U34+V34+W34+X34+Y34+Z34+AA34+AB34+AC34+AD34+AE34+AF34+AG34+AH34+AI34+AJ34+AK34+AL34+AM34+AN34+AO34+AP34+AQ34+AR34+AS34+AT34+AU34+AV34+AW34 -> 5823.387006 | L34: 368.3772342 | M34: 367.1335153 | N34: 358.9477916 | O34: 315.006338 | P34: 337.0375993 | Q34: 393.2231068 | R34: 258.8416935 | S34: 259.8567206 | T34: 338.8310931 | W34: 347.8927203 | X34: 389.1539125 | Y34: 269.5185224 | Z34: 316.9879098 | AF34: 329.459807 | AM34: 162.401293 | AP34: 265.8621113 | AQ34: 298.3205185 | AR34: 246.0778522 | AS34: 200.4572671
A35: 34 | B35: 105 | C35: Benda | D35: Tomáš | E35: =COUNT(I35:AV35) -> 13 | F35: =G35/E35 -> 372.7955809 | G35: =I35+J35+K35+L35+M35+N35+O35+P35+Q35+R35+S35+T35+U35+V35+W35+X35+Y35+Z35+AA35+AB35+AC35+AD35+AE35+AF35+AG35+AH35+AI35+AJ35+AK35+AL35+AM35+AN35+AO35+AP35+AQ35+AR35+AS35+AT35+AU35+AV35 -> 4846.342552 | H35: =I35+J35+K35+L35+M35+N35+O35+P35+Q35+R35+S35+T35+U35+V35+W35+X35+Y35+Z35+AA35+AB35+AC35+AD35+AE35+AF35+AG35+AH35+AI35+AJ35+AK35+AL35+AM35+AN35+AO35+AP35+AQ35+AR35+AS35+AT35+AU35+AV35+AW35 -> 4846.342552 | K35: 334.5854115 | L35: 342.9965748 | M35: 387.178827 | O35: 365.6580102 | P35: 380.8005668 | Q35: 400.4082466 | R35: 369.5212379 | S35: 369 | T35: 370.9733826 | AL35: 354.4938678 | AN35: 398.9054177 | AP35: 397.5666708 | AR35: 374.2543381
A36: 35 | B36: 161 | C36: Holan | D36: Martin | E36: =COUNT(I36:AV36) -> 17 | F36: =G36/15 -> 318.5016315 | G36: =I36+J36+K36+L36+M36+N36+O36+P36+Q36+R36+S36+T36+U36+V36+W36+X36+Y36+Z36+AA36+AC36+AD36+AE36+AF36+AG36+AH36+AI36+AJ36+AK36+AL36+AM36+AN36+AO36+AP36+AQ36+AS36+AT36+AU36+AV36 -> 4777.524472 | H36: =I36+J36+K36+L36+M36+N36+O36+P36+Q36+R36+S36+T36+U36+V36+W36+X36+Y36+Z36+AA36+AB36+AC36+AD36+AE36+AF36+AG36+AH36+AI36+AJ36+AK36+AL36+AM36+AN36+AO36+AP36+AQ36+AR36+AS36+AT36+AU36+AV36+AW36 -> 5289.727549 | K36: 313.1161354 | L36: 299.5367423 | M36: 332.1823027 | O36: 304.8802288 | Q36: 350.9330135 | W36: 324.9779371 | X36: 334.3886365 | AB36: 241.6683688 | AF36: 297.4678894 | AI36: 323.0480224 | AJ36: 310.4359675 | AL36: 328.6637379 | AN36: 346.3865752 | AQ36: 304.9716602 | AR36: 270.5347082 | AS36: 299.7804281 | AU36: 306.7551954
A37: 36 | B37: 157 | C37: Procházka | D37: Jiří st. | E37: =COUNT(I37:AV37) -> 22 | F37: =G37/15 -> 294.3697353 | G37: =I37+J37+K37+L37+M37+N37+O37+P37+Q37+R37+S37+V37+X37+Y37+AA37+AB37+AC37+AE37+AF37+AG37+AH37+AI37+AJ37+AL37+AM37+AN37+AP37+AQ37+AR37+AS37+AT37+AU37+AV37 -> 4415.546029 | H37: =I37+J37+K37+L37+M37+N37+O37+P37+Q37+R37+S37+T37+U37+V37+W37+X37+Y37+Z37+AA37+AB37+AC37+AD37+AE37+AF37+AG37+AH37+AI37+AJ37+AK37+AL37+AM37+AN37+AO37+AP37+AQ37+AR37+AS37+AT37+AU37+AV37+AW37 -> 6051.989007 | I37: 346.8822445 | L37: 286.9166338 | M37: 285.5877658 | N37: 273.3534592 | Q37: 296.0604205 | T37: 248.8819612 | U37: 162.6807518 | V37: 268 | W37: 254.2425417 | Z37: 221.7446768 | AB37: 271.0367366 | AD37: 265.392274 | AF37: 304.7618375 | AJ37: 266.3700165 | AK37: 255.5007723 | AL37: 278 | AM37: 296.6374201 | AO37: 228 | AP37: 303.1657859 | AR37: 289.9953101 | AT37: 341.5730634 | AU37: 307.205335
A38: 37 | B38: 109 | C38: Cimbulka | D38: Václav | E38: =COUNT(I38:AV38) -> 12 | F38: =G38/E38 -> 348.1381944 | G38: =I38+J38+K38+L38+M38+N38+O38+P38+Q38+R38+S38+T38+U38+V38+W38+X38+Y38+Z38+AA38+AB38+AC38+AD38+AE38+AF38+AG38+AH38+AI38+AJ38+AK38+AL38+AM38+AN38+AO38+AP38+AQ38+AR38+AS38+AT38+AU38+AV38 -> 4177.658333 | H38: =I38+J38+K38+L38+M38+N38+O38+P38+Q38+R38+S38+T38+U38+V38+W38+X38+Y38+Z38+AA38+AB38+AC38+AD38+AE38+AF38+AG38+AH38+AI38+AJ38+AK38+AL38+AM38+AN38+AO38+AP38+AQ38+AR38+AS38+AT38+AU38+AV38+AW38 -> 4177.658333 | T38: 289.4501651 | W38: 318.34345 | X38: 362.0451298 | AB38: 351.1015144 | AC38: 368.2334025 | AD38: 355.8542413 | AF38: 316.8501222 | AG38: 316.3104434 | AI38: 350.2288408 | AL38: 381.5852096 | AM38: 364.8518433 | AU38: 402.8039702
A39: 38 | B39: 158 | C39: Březina | D39: Tomáš | E39: =COUNT(I39:AV39) -> 28 | F39: =G39/15 -> 242.7326515 | G39: =I39+J39+L39+M39+N39+O39+Q39+T39+V39+W39+X39+Y39+AB39+AD39+AE39+AF39+AH39+AI39+AJ39+AK39+AN39+AO39+AP39+AQ39+AR39+AT39+AU39+AV39 -> 3640.989773 | H39: =I39+J39+K39+L39+M39+N39+O39+P39+Q39+R39+S39+U39+V39+W39+X39+Y39+Z39+AA39+AB39+AC39+AD39+AE39+AF39+AG39+AH39+AI39+AJ39+AK39+AL39+AM39+AN39+AO39+AP39+AQ39+AR39+AS39+AT39+AU39+AV39+AW39 -> 5468.384011 | I39: 221.4408845 | J39: 226.21086 | K39: 10.65402899 | M39: 208.6478554 | N39: 218.2642202 | O39: 205.2052524 | P39: 201.434644 | Q39: 249.0967544 | R39: 180.1952435 | S39: 184.7652923 | T39: 200.8301394 | U39: 179.7928385 | X39: 241.6028422 | Z39: 183.297052 | AA39: 178.8782845 | AB39: 224.4871757 | AC39: 174.7082802 | AF39: 236.6576705 | AG39: 187.0100943 | AI39: 234.3226996 | AL39: 199.7473915 | AM39: 169.1156777 | AP39: 220.6488878 | AR39: 243.3461442 | AS39: 178.6255498 | AT39: 243.8802582 | AU39: 241.8602667 | AV39: 224.4878615
A40: 39 | B40: 141 | C40: Procházka | D40: Jiří ml. | E40: =COUNT(I40:AV40) -> 29 | F40: =G40/15 -> 238.5188553 | G40: =I40+J40+L40+M40+N40+O40+P40+R40+S40+V40+W40+X40+Y40+AA40+AB40+AD40+AE40+AF40+AG40+AH40+AI40+AP40+AQ40+AS40+AT40+AV40 -> 3577.78283 | H40: =I40+J40+K40+L40+M40+N40+O40+P40+Q40+R40+S40+T40+U40+V40+W40+X40+Y40+Z40+AA40+AB40+AC40+AD40+AE40+AF40+AG40+AH40+AI40+AJ40+AK40+AL40+AM40+AN40+AO40+AP40+AQ40+AR40+AS40+AT40+AU40+AV40+AW40 -> 6049.44207 | I40: 295.6072044 | J40: 226.1006662 | K40: 214.3664277 | L40: 237.1656917 | M40: 263.6836414 | Q40: 66.13594611 | T40: 185.7569281 | U40: 175.6985412 | V40: 276.0842667 | W40: 218.110982 | Z40: 205.0899629 | AA40: 231.6993475 | AB40: 224.3198817 | AC40: 170.7086005 | AD40: 228.8099031 | AE40: 228.1349099 | AF40: 263.8227523 | AI40: 217.8427488 | AJ40: 177.8931945 | AK40: 175.0120194 | AL40: 179.3275978 | AM40: 174.9403525 | AN40: 181.1481648 | AO40: 162.9470755 | AP40: 227.6023104 | AR40: 210.6369113 | AS40: 223.4823401 | AT40: 215.3161834 | AU40: 191.9975186
A41: 40 | B41: 144 | C41: Rabiňák | D41: Martin | E41: =COUNT(I41:AV41) -> 7 | F41: =G41/E41 -> 467.0941793 | G41: =I41+J41+K41+L41+M41+N41+O41+P41+Q41+R41+S41+T41+U41+V41+W41+X41+Y41+Z41+AA41+AB41+AC41+AD41+AE41+AF41+AG41+AH41+AI41+AJ41+AK41+AL41+AM41+AN41+AO41+AP41+AQ41+AR41+AS41+AT41+AU41+AV41 -> 3269.659255 | H41: =I41+J41+K41+L41+M41+N41+O41+P41+Q41+R41+S41+T41+U41+V41+W41+X41+Y41+Z41+AA41+AB41+AC41+AD41+AE41+AF41+AG41+AH41+AI41+AJ41+AK41+AL41+AM41+AN41+AO41+AP41+AQ41+AR41+AS41+AT41+AU41+AV41+AW41 -> 3269.659255 | N41: 480.9078635 | AC41: 457.8295649 | AJ41: 396.5391128 | AK41: 480.3358259 | AO41: 492.6937569 | AP41: 479.437139 | AV41: 481.9159923
A42: 41 | B42: 129 | C42: Miřejovský | D42: Tomáš | E42: =COUNT(I42:AV42) -> 12 | F42: =G42/E42 -> 257.687673 | G42: =I42+J42+K42+L42+M42+N42+O42+P42+Q42+R42+S42+T42+U42+V42+W42+X42+Y42+Z42+AA42+AB42+AC42+AD42+AE42+AF42+AG42+AH42+AI42+AJ42+AK42+AL42+AM42+AN42+AO42+AP42+AQ42+AR42+AS42+AT42+AU42+AV42 -> 3092.252077 | H42: =I42+J42+K42+L42+M42+N42+O42+P42+Q42+R42+S42+T42+U42+V42+W42+X42+Y42+Z42+AA42+AB42+AC42+AD42+AE42+AF42+AG42+AH42+AI42+AJ42+AK42+AL42+AM42+AN42+AO42+AP42+AQ42+AR42+AS42+AT42+AU42+AV42+AW42 -> 3092.252077 | J42: 136.5648363 | K42: 259.6672382 | M42: 313.6694815 | N42: 309.5735643 | O42: 253.9173465 | Q42: 334.3922229 | AB42: 253.8779143 | AF42: 229.4788826 | AQ42: 220.3372901 | AR42: 283.9901208 | AS42: 252.9129868 | AU42: 243.8701923
A43: 42 | B43: 151 | C43: Veselý | D43: Radko | E43: =COUNT(I43:AV43) -> 11 | F43: =G43/E43 -> 280.124041 | G43: =I43+J43+K43+L43+M43+N43+O43+P43+Q43+R43+S43+T43+U43+V43+W43+X43+Y43+Z43+AA43+AB43+AC43+AD43+AE43+AF43+AG43+AH43+AI43+AJ43+AK43+AL43+AM43+AN43+AO43+AP43+AQ43+AR43+AS43+AT43+AU43+AV43 -> 3081.364451 | H43: =I43+J43+K43+L43+M43+N43+O43+P43+Q43+R43+S43+T43+U43+V43+W43+X43+Y43+Z43+AA43+AB43+AC43+AD43+AE43+AF43+AG43+AH43+AI43+AJ43+AK43+AL43+AM43+AN43+AO43+AP43+AQ43+AR43+AS43+AT43+AU43+AV43+AW43 -> 3081.364451 | I43: 268.8581109 | M43: 263.2202255 | O43: 285.1951767 | P43: 257.2238247 | Q43: 331.0335443 | T43: 262.2215942 | W43: 287.6318395 | X43: 310.5358683 | Y43: 237.168918 | AP43: 306.6732211 | AQ43: 271.6021278
A44: 43 | B44: 110 | C44: Černý | D44: Václav | E44: =COUNT(I44:AV44) -> 16 | F44: =G44/15 -> 202.0819186 | G44: =I44+J44+K44+L44+M44+N44+O44+P44+Q44+R44+S44+U44+V44+W44+X44+Y44+Z44+AA44+AB44+AC44+AD44+AE44+AF44+AG44+AH44+AI44+AJ44+AK44+AL44+AM44+AN44+AO44+AP44+AQ44+AR44+AS44+AT44+AU44+AV44 -> 3031.228779 | H44: =I44+J44+K44+L44+M44+N44+O44+P44+Q44+R44+S44+T44+U44+V44+W44+X44+Y44+Z44+AA44+AB44+AC44+AD44+AE44+AF44+AG44+AH44+AI44+AJ44+AK44+AL44+AM44+AN44+AO44+AP44+AQ44+AR44+AS44+AT44+AU44+AV44+AW44 -> 3114.228779 | I44: 252.1072341 | K44: 143.2546563 | O44: 125.0316898 | Q44: 234.2535892 | T44: 83 | W44: 114.9958027 | X44: 244.385161 | Z44: 175.0407768 | AB44: 246.6750314 | AC44: 189.1975288 | AD44: 193.6964855 | AF44: 228.2651086 | AK44: 182.2394869 | AL44: 185.442675 | AP44: 262.0191717 | AQ44: 254.6243815
A45: 44 | B45: 119 | C45: Frabša | D45: Michal | E45: =COUNT(I45:AV45) -> 6 | F45: =G45/E45 -> 470.701098 | G45: =I45+J45+K45+L45+M45+N45+O45+P45+Q45+R45+S45+T45+U45+V45+W45+X45+Y45+Z45+AA45+AB45+AC45+AD45+AE45+AF45+AG45+AH45+AI45+AJ45+AK45+AL45+AM45+AN45+AO45+AP45+AQ45+AR45+AS45+AT45+AU45+AV45 -> 2824.206588 | H45: =I45+J45+K45+L45+M45+N45+O45+P45+Q45+R45+S45+T45+U45+V45+W45+X45+Y45+Z45+AA45+AB45+AC45+AD45+AE45+AF45+AG45+AH45+AI45+AJ45+AK45+AL45+AM45+AN45+AO45+AP45+AQ45+AR45+AS45+AT45+AU45+AV45+AW45 -> 2824.206588 | AD45: 465.2993495 | AF45: 473.2376256 | AG45: 473.3693506 | AH45: 463.3188868 | AJ45: 461.8190681 | AK45: 487.1623073
A46: 45 | B46: 101 | C46: Adam | D46: Petr | E46: =COUNT(I46:AV46) -> 5 | F46: =G46/E46 -> 455.4739767 | G46: =I46+J46+K46+L46+M46+N46+O46+P46+Q46+R46+S46+T46+U46+V46+W46+X46+Y46+Z46+AA46+AB46+AC46+AD46+AE46+AF46+AG46+AH46+AI46+AJ46+AK46+AL46+AM46+AN46+AO46+AP46+AQ46+AR46+AS46+AT46+AU46+AV46 -> 2277.369884 | H46: =I46+J46+K46+L46+M46+N46+O46+P46+Q46+R46+S46+T46+U46+V46+W46+X46+Y46+Z46+AA46+AB46+AC46+AD46+AE46+AF46+AG46+AH46+AI46+AJ46+AK46+AL46+AM46+AN46+AO46+AP46+AQ46+AR46+AS46+AT46+AU46+AV46+AW46 -> 2277.369884 | O46: 465.3362369 | Q46: 464 | S46: 474 | Y46: 438.6361917 | Z46: 435.397455
A47: 46 | B47: 162 | C47: Kalát | D47: Josef | E47: =COUNT(I47:AV47) -> 4 | F47: =G47/E47 -> 451.2701532 | G47: =I47+J47+K47+L47+M47+N47+O47+P47+Q47+R47+S47+T47+U47+V47+W47+X47+Y47+Z47+AA47+AB47+AC47+AD47+AE47+AF47+AG47+AH47+AI47+AJ47+AK47+AL47+AM47+AN47+AO47+AP47+AQ47+AR47+AS47+AT47+AU47+AV47 -> 1805.080613 | H47: =I47+J47+K47+L47+M47+N47+O47+P47+Q47+R47+S47+T47+U47+V47+W47+X47+Y47+Z47+AA47+AB47+AC47+AD47+AE47+AF47+AG47+AH47+AI47+AJ47+AK47+AL47+AM47+AN47+AO47+AP47+AQ47+AR47+AS47+AT47+AU47+AV47+AW47 -> 1805.080613 | AG47: 455.5400218 | AH47: 454.458591 | AJ47: 446.2911125 | AM47: 448.7908874
A48: 47 | B48: 127 | C48: Libra | D48: Gustav | E48: =COUNT(I48:AV48) -> 7 | F48: =G48/E48 -> 237.8624927 | G48: =I48+J48+K48+L48+M48+N48+O48+P48+Q48+R48+S48+T48+U48+V48+W48+X48+Y48+Z48+AA48+AB48+AC48+AD48+AE48+AF48+AG48+AH48+AI48+AJ48+AK48+AL48+AM48+AN48+AO48+AP48+AQ48+AR48+AS48+AT48+AU48+AV48 -> 1665.037449 | H48: =I48+J48+K48+L48+M48+N48+O48+P48+Q48+R48+S48+T48+U48+V48+W48+X48+Y48+Z48+AA48+AB48+AC48+AD48+AE48+AF48+AG48+AH48+AI48+AJ48+AK48+AL48+AM48+AN48+AO48+AP48+AQ48+AR48+AS48+AT48+AU48+AV48+AW48 -> 1665.037449 | I48: 275.025263 | J48: 275.2064014 | M48: 232.1359611 | Q48: 235.0326597 | S48: 194.5856921 | T48: 216.2747055 | W48: 236.7767661
A49: 48 | B49: 148 | C49: Skokan | D49: Miroslav | E49: =COUNT(I49:AV49) -> 4 | F49: =G49/E49 -> 406.6459924 | G49: =I49+J49+K49+L49+M49+N49+O49+P49+Q49+R49+S49+T49+U49+V49+W49+X49+Y49+Z49+AA49+AB49+AC49+AD49+AE49+AF49+AG49+AH49+AI49+AJ49+AK49+AL49+AM49+AN49+AO49+AP49+AQ49+AR49+AS49+AT49+AU49+AV49 -> 1626.58397 | H49: =I49+J49+K49+L49+M49+N49+O49+P49+Q49+R49+S49+T49+U49+V49+W49+X49+Y49+Z49+AA49+AB49+AC49+AD49+AE49+AF49+AG49+AH49+AI49+AJ49+AK49+AL49+AM49+AN49+AO49+AP49+AQ49+AR49+AS49+AT49+AU49+AV49+AW49 -> 1626.58397 | AQ49: 400.248554 | AR49: 405.3830177 | AU49: 427.7078164 | AV49: 393.2445815
A50: 49 | B50: 108 | C50: Cedrych | D50: Karel | E50: =COUNT(I50:AV50) -> 2 | F50: =G50/E50 -> 297.5482375 | G50: =I50+J50+K50+L50+M50+N50+O50+P50+Q50+R50+S50+T50+U50+V50+W50+X50+Y50+Z50+AA50+AB50+AC50+AD50+AE50+AF50+AG50+AH50+AI50+AJ50+AK50+AL50+AM50+AN50+AO50+AP50+AQ50+AR50+AS50+AT50+AU50+AV50 -> 595.0964751 | H50: =I50+J50+K50+L50+M50+N50+O50+P50+Q50+R50+S50+T50+U50+V50+W50+X50+Y50+Z50+AA50+AB50+AC50+AD50+AE50+AF50+AG50+AH50+AI50+AJ50+AK50+AL50+AM50+AN50+AO50+AP50+AQ50+AR50+AS50+AT50+AU50+AV50+AW50 -> 595.0964751 | I50: 199.0964751 | J50: 396
A51: 50 | B51: 130 | C51: Novák | D51: Miloš | E51: =COUNT(I51:AV51) -> 2 | F51: =G51/E51 -> 149.3775489 | G51: =I51+J51+K51+L51+M51+N51+O51+P51+Q51+R51+S51+T51+U51+V51+W51+X51+Y51+Z51+AA51+AB51+AC51+AD51+AE51+AF51+AG51+AH51+AI51+AJ51+AK51+AL51+AM51+AN51+AO51+AP51+AQ51+AR51+AS51+AT51+AU51+AV51 -> 298.7550977 | H51: =I51+J51+K51+L51+M51+N51+O51+P51+Q51+R51+S51+T51+U51+V51+W51+X51+Y51+Z51+AA51+AB51+AC51+AD51+AE51+AF51+AG51+AH51+AI51+AJ51+AK51+AL51+AM51+AN51+AO51+AP51+AQ51+AR51+AS51+AT51+AU51+AV51+AW51 -> 298.7550977 | AF51: 98.66046827 | AP51: 200.0946295
A52: 51 | B52: 102 | C52: Adámek | D52: Petr | E52: =COUNT(I52:AV52) -> 1 | F52: =G52/E52 -> 223.2813076 | G52: =I52+J52+K52+L52+M52+N52+O52+P52+Q52+R52+S52+T52+U52+V52+W52+X52+Y52+Z52+AA52+AB52+AC52+AD52+AE52+AF52+AG52+AH52+AI52+AJ52+AK52+AL52+AM52+AN52+AO52+AP52+AQ52+AR52+AS52+AT52+AU52+AV52 -> 223.2813076 | H52: =I52+J52+K52+L52+M52+N52+O52+P52+Q52+R52+S52+T52+U52+V52+W52+X52+Y52+Z52+AA52+AB52+AC52+AD52+AE52+AF52+AG52+AH52+AI52+AJ52+AK52+AL52+AM52+AN52+AO52+AP52+AQ52+AR52+AS52+AT52+AU52+AV52+AW52 -> 223.2813076 | AP52: 223.2813076
A53: 52 | B53: 120 | C53: Hampl | D53: Stanislav | E53: =COUNT(I53:AV53) -> 1 | F53: =G53/E53 -> 192.0122048 | G53: =I53+J53+K53+L53+M53+N53+O53+P53+Q53+R53+S53+T53+U53+V53+W53+X53+Y53+Z53+AA53+AB53+AC53+AD53+AE53+AF53+AG53+AH53+AI53+AJ53+AK53+AL53+AM53+AN53+AO53+AP53+AQ53+AR53+AS53+AT53+AU53+AV53 -> 192.0122048 | H53: =I53+J53+K53+L53+M53+N53+O53+P53+Q53+R53+S53+T53+U53+V53+W53+X53+Y53+Z53+AA53+AB53+AC53+AD53+AE53+AF53+AG53+AH53+AI53+AJ53+AK53+AL53+AM53+AN53+AO53+AP53+AQ53+AR53+AS53+AT53+AU53+AV53+AW53 -> 192.0122048 | AI53: 192.0122048
A54: 53 | B54: 152 | C54: Zelinka | D54: Miloslav | E54: =COUNT(I54:AV54) -> 2 | F54: =G54/E54 -> 7.893197257 | G54: =I54+J54+K54+L54+M54+N54+O54+P54+Q54+R54+S54+T54+U54+V54+W54+X54+Y54+Z54+AA54+AB54+AC54+AD54+AE54+AF54+AG54+AH54+AI54+AJ54+AK54+AL54+AM54+AN54+AO54+AP54+AQ54+AR54+AS54+AT54+AU54+AV54 -> 15.78639451 | H54: =I54+J54+K54+L54+M54+N54+O54+P54+Q54+R54+S54+T54+U54+V54+W54+X54+Y54+Z54+AA54+AB54+AC54+AD54+AE54+AF54+AG54+AH54+AI54+AJ54+AK54+AL54+AM54+AN54+AO54+AP54+AQ54+AR54+AS54+AT54+AU54+AV54+AW54 -> 15.78639451 | O54: 15.78639451 | AF54: 0
A55: 1 | B55: 203 | C55: Chlupatá | D55: Jana | E55: =COUNT(I55:AV55) -> 31 | F55: =G55/15 -> 547.3011628 | G55: =I55+J55+K55+L55+M55+N55+O55+P55+R55+T55+U55+V55+W55+Y55+Z55+AD55+AE55+AG55+AJ55+AL55+AN55+AR55+AU55+AV55 -> 8209.517442 | H55: =I55+J55+K55+L55+M55+N55+O55+P55+Q55+R55+S55+T55+U55+V55+W55+X55+Y55+Z55+AA55+AB55+AC55+AD55+AE55+AF55+AG55+AH55+AI55+AJ55+AK55+AL55+AM55+AN55+AO55+AP55+AQ55+AR55+AS55+AT55+AU55+AV55+AW55 -> 16599.34199 | K55: 550.758625 | L55: 562.4994872 | M55: 555.7518649 | N55: 559.8979005 | O55: 545.5954194 | Q55: 523.7582094 | R55: 550.7639347 | S55: 516.9049006 | T55: 549.2075359 | U55: 544.6309903 | V55: 542.3668363 | W55: 534.6433333 | X55: 525.6305369 | Y55: 537.3604178 | Z55: 543.4514722 | AA55: 532.1085328 | AB55: 524.9485551 | AC55: 523.0261593 | AF55: 516.5274463 | AG55: 556.9072139 | AH55: 527.690294 | AI55: 524.1964286 | AJ55: 543.0398833 | AK55: 516.8345324 | AM55: 530.0660527 | AN55: 532.642527 | AO55: 517.4012158 | AP55: 531.3155136 | AQ55: 524.0079761 | AS55: 524.7605893 | AT55: 530.6476058
A56: 2 | B56: 218 | C56: Hrstková | D56: Vlaďka | E56: =COUNT(I56:AV56) -> 28 | F56: =G56/15 -> 507.4963069 | G56: =L56+O56+P56+Q56+R56+S56+T56+U56+W56+X56+Z56+AA56+AC56+AD56+AE56+AF56+AG56+AH56+AI56+AJ56+AK56+AL56+AN56+AO56+AR56+AU56+AV56 -> 7612.444603 | H56: =I56+J56+K56+L56+M56+N56+O56+P56+Q56+R56+S56+T56+U56+V56+W56+X56+Y56+Z56+AA56+AB56+AC56+AD56+AE56+AF56+AG56+AH56+AI56+AJ56+AK56+AL56+AM56+AN56+AO56+AP56+AQ56+AR56+AS56+AT56+AU56+AV56+AW56 -> 13544.47822 | I56: 406.5557049 | J56: 446.3739928 | K56: 428.6703601 | M56: 379.6623479 | N56: 355.3773301 | V56: 480.7884882 | Y56: 480.3418366 | Z56: 500 | AB56: 474.9986809 | AC56: 500 | AD56: 534.493934 | AE56: 500 | AF56: 500 | AH56: 500 | AI56: 500 | AJ56: 500 | AK56: 500 | AL56: 535.0419596 | AM56: 484.4668797 | AN56: 500 | AO56: 500 | AP56: 500 | AQ56: 500 | AR56: 534.653967 | AS56: 500 | AT56: 494.7979981 | AU56: 504.9291833 | AV56: 503.3255593
A57: 3 | B57: 201 | C57: Borovičková | D57: Lenka | E57: =COUNT(I57:AV57) -> 25 | F57: =G57/15 -> 505.8966816 | G57: =I57+J57+K57+L57+M57+N57+O57+P57+Q57+R57+S57+T57+U57+V57+W57+X57+Y57+Z57+AA57+AB57+AD57+AE57+AF57+AG57+AI57+AL57+AM57+AR57+AT57+AU57 -> 7588.450223 | H57: =I57+J57+K57+L57+M57+N57+O57+P57+Q57+R57+S57+T57+U57+V57+W57+X57+Y57+Z57+AA57+AB57+AC57+AD57+AE57+AF57+AG57+AH57+AI57+AJ57+AK57+AL57+AM57+AN57+AO57+AP57+AQ57+AR57+AS57+AT57+AU57+AV57+AW57 -> 12486.85698 | I57: 539.976355 | J57: 526.1899139 | O57: 500.0032831 | Q57: 499.9985438 | R57: 500.0017684 | S57: 500.0017761 | W57: 499.9990612 | X57: 499.9994156 | Y57: 500.001598 | AA57: 499.9993203 | AB57: 500.0017588 | AC57: 492.9536266 | AE57: 522.2735264 | AH57: 495.0078534 | AJ57: 494.5048638 | AK57: 477.9073741 | AM57: 499.9993287 | AN57: 490.1456086 | AO57: 473.9741641 | AP57: 498.3485325 | AQ57: 492.0279163 | AS57: 483.5392879 | AT57: 500.0009867 | AU57: 500.0035875 | AV57: 499.9975321
A58: 4 | B58: 213 | C58: Flieglová | D58: Alena | E58: =COUNT(I58:AV58) -> 31 | F58: =G58/15 -> 501.0250694 | G58: =I58+J58+K58+L58+M58+N58+O58+P58+R58+T58+U58+V58+X58+AA58+AC58+AD58+AE58+AG58+AH58+AL58+AN58+AO58+AR58+AT58 -> 7515.376041 | H58: =I58+J58+K58+L58+M58+N58+O58+P58+Q58+R58+S58+T58+U58+V58+W58+X58+Y58+Z58+AA58+AB58+AC58+AD58+AE58+AF58+AG58+AH58+AI58+AJ58+AK58+AL58+AM58+AN58+AO58+AP58+AQ58+AR58+AS58+AT58+AU58+AV58+AW58 -> 15036.74092 | I58: 500.0046363 | J58: 500.0027785 | K58: 500 | L58: 500.0008204 | M58: 499.9973825 | N58: 499.9972627 | O58: 494.4345222 | P58: 520.9424433 | Q58: 474.6923738 | S58: 483.2833658 | T58: 500 | U58: 499.9974923 | V58: 499.9986282 | W58: 476.4894756 | Y58: 460.2969658 | Z58: 473.9672846 | AB58: 464.7906151 | AD58: 499.9993453 | AF58: 472.7613365 | AG58: 499.9987302 | AI58: 472.109127 | AJ58: 471 | AK58: 454.1942446 | AL58: 500.0009861 | AM58: 473.0526542 | AP58: 487.7966457 | AQ58: 463.6430708 | AR58: 500.0010133 | AS58: 464.4775936 | AU58: 455.9587871 | AV58: 472.8513432
A59: 5 | B59: 215 | C59: Dolejšová | D59: Jitka | E59: =COUNT(I59:AV59) -> 35 | F59: =G59/15 -> 467.1800927 | G59: =J59+L59+N59+O59+P59+R59+T59+U59+V59+W59+AD59+AF59+AG59+AH59+AL59+AM59+AN59+AP59+AR59+AT59 -> 7007.70139 | H59: =I59+J59+K59+L59+M59+N59+O59+P59+Q59+R59+S59+T59+U59+V59+W59+X59+Y59+Z59+AA59+AB59+AC59+AD59+AE59+AF59+AG59+AH59+AI59+AJ59+AK59+AL59+AM59+AN59+AO59+AP59+AQ59+AR59+AS59+AT59+AU59+AV59+AW59 -> 15852.24028 | I59: 447.2970467 | J59: 452.712559 | K59: 452.0429363 | L59: 481.5364799 | M59: 442.8739694 | N59: 459.7179263 | O59: 468.5842044 | P59: 494.2629832 | Q59: 450.9691136 | R59: 456.8017306 | S59: 448.1752369 | T59: 469.5723684 | U59: 475.026331 | V59: 461.8753344 | W59: 457.8177517 | X59: 425.3290012 | Y59: 440.7682376 | Z59: 452.0992366 | AA59: 448.2280494 | AB59: 442.8126704 | AC59: 444.2776457 | AD59: 484.1623182 | AE59: 449.7156153 | AI59: 434.858631 | AJ59: 439.0321012 | AK59: 432.4415468 | AL59: 470.3767984 | AN59: 456.5677966 | AO59: 424.0881459 | AP59: 453.0267296 | AQ59: 443.1455633 | AS59: 429.7421731 | AT59: 465.660078 | AU59: 445.3592492 | AV59: 451.2827157
A60: 6 | B60: 205 | C60: Norková | D60: Zdena | E60: =COUNT(I60:AV60) -> 36 | F60: =G60/15 -> 462.754592 | G60: =K60+L60+N60+O60+P60+S60+T60+U60+AA60+AB60+AD60+AG60+AH60+AL60+AM60+AP60+AQ60+AR60+AT60 -> 6941.318881 | H60: =I60+J60+K60+L60+M60+N60+O60+P60+Q60+R60+S60+T60+U60+V60+W60+X60+Y60+Z60+AA60+AB60+AC60+AD60+AE60+AF60+AG60+AH60+AI60+AJ60+AK60+AL60+AM60+AN60+AO60+AP60+AQ60+AR60+AS60+AT60+AU60+AV60+AW60 -> 15919.38123 | I60: 435.4351152 | J60: 439.580439 | K60: 451.7313019 | L60: 467.0798842 | M60: 437.5343541 | N60: 459.2614896 | O60: 461.3436991 | P60: 474.9863404 | Q60: 435.6336736 | R60: 443.9934453 | T60: 457.1605861 | U60: 457.8090127 | V60: 436.8194351 | W60: 440 | X60: 417.5054347 | Y60: 409.133967 | Z60: 420.7273719 | AC60: 430.6896552 | AD60: 474.9936165 | AE60: 436.254395 | AF60: 442.1479714 | AG60: 469.5737197 | AH60: 446.7225131 | AI60: 443.4761905 | AJ60: 419.4640078 | AK60: 423.9901079 | AL60: 472.4594949 | AM60: 451.3492468 | AN60: 419.1063174 | AO60: 402.2239108 | AP60: 457.4203354 | AR60: 478.3731888 | AS60: 437.8557397 | AT60: 461.0544513 | AU60: 407.0744902 | AV60: 399.4163304
A61: 7 | B61: 216 | C61: Zeidlerová | D61: Jarmila | E61: =COUNT(I61:AV61) -> 25 | F61: =G61/15 -> 418.8692471 | G61: =I61+J61+K61+L61+M61+N61+O61+P61+Q61+R61+T61+U61+V61+Y61+Z61+AA61+AD61+AE61+AF61+AG61+AH61+AJ61+AK61+AL61+AP61+AQ61+AR61+AS61+AT61+AU61 -> 6283.038707 | H61: =I61+J61+K61+L61+M61+N61+O61+P61+Q61+R61+S61+T61+U61+V61+W61+X61+Y61+Z61+AA61+AB61+AC61+AD61+AE61+AF61+AG61+AH61+AI61+AJ61+AK61+AL61+AM61+AN61+AO61+AP61+AQ61+AR61+AS61+AT61+AU61+AV61+AW61 -> 9934.079633 | K61: 395.0579199 | L61: 436.601334 | M61: 428.0355974 | N61: 421.6612378 | O61: 445.0688134 | R61: 409.5421107 | S61: 380.6035891 | T61: 420.8672249 | U61: 418.0592823 | V61: 397.9437304 | W61: 389.0624707 | X61: 373.0090461 | AB61: 372.2813374 | AC61: 362.9916766 | AD61: 453.958111 | AF61: 404.9832936 | AG61: 417.9496133 | AI61: 377.9861111 | AJ61: 410.6585603 | AM61: 389.8517842 | AN61: 356.8952234 | AO61: 314.0070922 | AP61: 424.8333333 | AQ61: 397.8185444 | AV61: 334.3525957
A62: 8 | B62: 207 | C62: Pucholtová | D62: Zdeňka | E62: =COUNT(I62:AV62) -> 16 | F62: =G62/15 -> 414.1946114 | G62: =I62+J62+K62+L62+M62+N62+O62+P62+Q62+R62+S62+T62+U62+V62+W62+X62+Y62+Z62+AA62+AB62+AC62+AD62+AE62+AF62+AG62+AH62+AI62+AJ62+AK62+AL62+AM62+AN62+AO62+AP62+AQ62+AR62+AS62+AT62+AU62 -> 6212.919171 | H62: =I62+J62+K62+L62+M62+N62+O62+P62+Q62+R62+S62+T62+U62+V62+W62+X62+Y62+Z62+AA62+AB62+AC62+AD62+AE62+AF62+AG62+AH62+AI62+AJ62+AK62+AL62+AM62+AN62+AO62+AP62+AQ62+AR62+AS62+AT62+AU62+AV62+AW62 -> 6549.94949 | I62: 446 | J62: 432.2297861 | K62: 430.2474188 | M62: 435.1354535 | Q62: 417.3938052 | U62: 417.2298568 | V62: 443.3195243 | Z62: 404.2824427 | AA62: 413.2743363 | AC62: 396.2187872 | AE62: 413.4875905 | AF62: 406.7625298 | AI62: 386.96875 | AJ62: 383.3599222 | AM62: 387.0089681 | AV62: 337.0303187
A63: 9 | B63: 217 | C63: Kasalová | D63: Barbora | E63: =COUNT(I63:AV63) -> 13 | F63: =G63/E63 -> 443.6895625 | G63: =I63+J63+K63+L63+M63+N63+O63+P63+Q63+R63+S63+T63+U63+V63+W63+X63+Y63+Z63+AA63+AB63+AC63+AD63+AE63+AF63+AG63+AH63+AI63+AJ63+AK63+AL63+AM63+AN63+AO63+AP63+AQ63+AR63+AS63+AT63+AU63+AV63 -> 5767.964312 | H63: =I63+J63+K63+L63+M63+N63+O63+P63+Q63+R63+S63+T63+U63+V63+W63+X63+Y63+Z63+AA63+AB63+AC63+AD63+AE63+AF63+AG63+AH63+AI63+AJ63+AK63+AL63+AM63+AN63+AO63+AP63+AQ63+AR63+AS63+AT63+AU63+AV63+AW63 -> 5767.964312 | I63: 454.8356437 | L63: 463.1078276 | M63: 455.1354535 | O63: 435.2543731 | P63: 499.998001 | R63: 467.5463312 | S63: 431.4689041 | U63: 460.7888006 | W63: 451.5340706 | AB63: 410.9907311 | AI63: 436.5193452 | AQ63: 402.2268195 | AS63: 398.558011
A64: 10 | B64: 206 | C64: Preislerová | D64: Jiřina | E64: =COUNT(I64:AV64) -> 13 | F64: =G64/E64 -> 403.6837608 | G64: =I64+J64+K64+L64+M64+N64+O64+P64+Q64+R64+S64+T64+U64+V64+W64+X64+Y64+Z64+AA64+AB64+AC64+AD64+AE64+AF64+AG64+AH64+AI64+AJ64+AK64+AL64+AM64+AN64+AO64+AP64+AQ64+AR64+AS64+AT64+AU64+AV64 -> 5247.888891 | H64: =I64+J64+K64+L64+M64+N64+O64+P64+Q64+R64+S64+T64+U64+V64+W64+X64+Y64+Z64+AA64+AB64+AC64+AD64+AE64+AF64+AG64+AH64+AI64+AJ64+AK64+AL64+AM64+AN64+AO64+AP64+AQ64+AR64+AS64+AT64+AU64+AV64+AW64 -> 5247.888891 | M64: 331.9748724 | O64: 385.3049325 | T64: 398.8232656 | U64: 395.3933345 | W64: 377.6085773 | AE64: 379.7859359 | AF64: 387.9367542 | AK64: 416.2167266 | AN64: 428.3466872 | AO64: 414.1702128 | AP64: 458.6593291 | AQ64: 432.3140578 | AS64: 441.354205
A65: 11 | B65: 204 | C65: Jošková | D65: Blanka | E65: =COUNT(I65:AV65) -> 11 | F65: =G65/E65 -> 424.4630379 | G65: =I65+J65+K65+L65+M65+N65+O65+P65+Q65+R65+S65+T65+U65+V65+W65+X65+Y65+Z65+AA65+AB65+AC65+AD65+AE65+AF65+AG65+AH65+AI65+AJ65+AK65+AL65+AM65+AN65+AO65+AP65+AQ65+AR65+AS65+AT65+AU65+AV65 -> 4669.093417 | H65: =I65+J65+K65+L65+M65+N65+O65+P65+Q65+R65+S65+T65+U65+V65+W65+X65+Y65+Z65+AA65+AB65+AC65+AD65+AE65+AF65+AG65+AH65+AI65+AJ65+AK65+AL65+AM65+AN65+AO65+AP65+AQ65+AR65+AS65+AT65+AU65+AV65+AW65 -> 4669.093417 | I65: 428.7148222 | J65: 429.3762156 | O65: 442.4279036 | P65: 465.5532456 | Q65: 416.6649677 | S65: 374.100584 | U65: 431.182762 | W65: 434.1410519 | Z65: 424.7606325 | AA65: 419.6980819 | AF65: 402.4731504
A66: 12 | B66: 214 | C66: Požgayová | D66: Jana | E66: =COUNT(I66:AV66) -> 24 | F66: =G66/15 -> 250.2104303 | G66: =I66+J66+K66+N66+O66+P66+Q66+R66+T66+U66+V66+W66+Y66+Z66+AA66+AB66+AC66+AD66+AE66+AF66+AG66+AH66+AK66+AL66+AM66+AN66+AP66+AR66+AS66+AT66+AV66 -> 3753.156455 | H66: =I66+J66+K66+L66+M66+N66+O66+P66+Q66+R66+S66+T66+U66+V66+W66+X66+Y66+Z66+AA66+AB66+AC66+AD66+AE66+AF66+AG66+AH66+AI66+AJ66+AK66+AL66+AM66+AN66+AO66+AP66+AQ66+AR66+AS66+AT66+AU66+AV66+AW66 -> 5543.685147 | K66: 241.5323596 | L66: 210.5768363 | M66: 196.6627405 | N66: 258.2870282 | O66: 251.4773861 | P66: 288.8431349 | R66: 235.8353768 | S66: 221.831086 | T66: 247.562799 | W66: 244.9631034 | X66: 203.6476473 | Y66: 259.2282469 | Z66: 244.4601963 | AB66: 230.9390225 | AC66: 227.8478002 | AD66: 252.6041496 | AF66: 235.4534606 | AG66: 298.0374852 | AI66: 200.5952381 | AJ66: 208.8472763 | AO66: 184.3870314 | AP66: 236.0849057 | AQ66: 192.671984 | AU66: 171.3088524
A67: 13 | B67: 219 | C67: Žaliová | D67: Iva | E67: =COUNT(I67:AV67) -> 7 | F67: =G67/E67 -> 330.1678849 | G67: =I67+J67+K67+L67+M67+N67+O67+P67+Q67+R67+S67+T67+U67+V67+W67+X67+Y67+Z67+AA67+AB67+AC67+AD67+AE67+AF67+AG67+AH67+AI67+AJ67+AK67+AL67+AM67+AN67+AO67+AP67+AQ67+AR67+AS67+AT67+AU67+AV67 -> 2311.175195 | H67: =I67+J67+K67+L67+M67+N67+O67+P67+Q67+R67+S67+T67+U67+V67+W67+X67+Y67+Z67+AA67+AB67+AC67+AD67+AE67+AF67+AG67+AH67+AI67+AJ67+AK67+AL67+AM67+AN67+AO67+AP67+AQ67+AR67+AS67+AT67+AU67+AV67+AW67 -> 2311.175195 | K67: 340 | M67: 342.803298 | N67: 341.0327649 | O67: 362.0187004 | U67: 342.0129398 | X67: 267.4984222 | AF67: 315.8090692
A68: 14 | B68: 220 | C68: Pucholtová | D68: Barbora | E68: =COUNT(I68:AV68) -> 1 | F68: =G68/E68 -> 254 | G68: =I68+J68+K68+L68+M68+N68+O68+P68+Q68+R68+S68+T68+U68+V68+W68+X68+Y68+Z68+AA68+AB68+AC68+AD68+AE68+AF68+AG68+AH68+AI68+AJ68+AK68+AL68+AM68+AN68+AO68+AP68+AQ68+AR68+AS68+AT68+AU68+AV68 -> 254 | H68: =I68+J68+K68+L68+M68+N68+O68+P68+Q68+R68+S68+T68+U68+V68+W68+X68+Y68+Z68+AA68+AB68+AC68+AD68+AE68+AF68+AG68+AH68+AI68+AJ68+AK68+AL68+AM68+AN68+AO68+AP68+AQ68+AR68+AS68+AT68+AU68+AV68+AW68 -> 254 | AM68: 254
A69: 15 | B69: 202 | C69: Člupková | D69: Alice | E69: =COUNT(I69:AV69) -> 1 | F69: =G69/E69 -> 240.3333333 | G69: =I69+J69+K69+L69+M69+N69+O69+P69+Q69+R69+S69+T69+U69+V69+W69+X69+Y69+Z69+AA69+AB69+AC69+AD69+AE69+AF69+AG69+AH69+AI69+AJ69+AK69+AL69+AM69+AN69+AO69+AP69+AQ69+AR69+AS69+AT69+AU69+AV69 -> 240.3333333 | H69: =I69+J69+K69+L69+M69+N69+O69+P69+Q69+R69+S69+T69+U69+V69+W69+X69+Y69+Z69+AA69+AB69+AC69+AD69+AE69+AF69+AG69+AH69+AI69+AJ69+AK69+AL69+AM69+AN69+AO69+AP69+AQ69+AR69+AS69+AT69+AU69+AV69+AW69 -> 240.3333333 | AI69: 240.3333333
